Cogmind - Beta 13 @@@ ROGUE MODE // 2024.04.26 @ 19:45:49 Player: Bean Result: Destroyed by H-66 Slayer with Gauss Rifle Performance ------------- Evolutions (4) 2000 Regions Visited (8) 1600 Robots Destroyed (33) 165 Value Destroyed (739) 739 Prototype IDs (23) 460 Alien Tech Used (0) 0 Bonus (1157) 1157 TOTAL SCORE: 6121 Bonus ------- High Alert Combat Kills 11 Follower Combat Kills 346 Entered DSFs 500 Aligned with FarCom 300 Cogmind --------- Core Integrity 0/850 Matter 190/300 Energy 17/100 System Corruption 1% Temperature Cool (1) Movement Hovering (60) Location -6/Factory Parts ------- > --- POWER (2) -------- (None) > --- PROPULSION (2) --- Gravmag Array > --- UTILITY (8) ------ Improved Signal Interpreter Advanced Targeting Computer Hacking Suite System Shield Improved System Shield > --- WEAPON (3) ------- (None) > --- INVENTORY (5) ---- Reinforced Deuterium Engine Fission Core Gravmag System Peak State ------------ > --- POWER ------------ Nuclear Core Light Nuclear Core > --- PROPULSION ------- Potential Leg Potential Leg > --- UTILITY ---------- Improved Heat Sink Large Storage Unit Visual Processing Unit ECM Suite > --- WEAPON ----------- Gatling Laser Gatling Laser Latent Energy Streamer > --- INVENTORY -------- Ion Engine Improved Ion Engine Reinforced Deuterium Engine Reinforced Deuterium Engine Fission Core Improved Shield Generator System Shield Medium Laser Gatling Laser Gatling Laser Datajack Deploy-a-Sentry Deploy-a-Sentry Deploy-a-Sentry [Rating: 56] Favorites ----------- Power Ion Engine Engine Ion Engine Power Core Nuclear Core Propulsion Potential Leg Leg Potential Leg Hover Unit Gravmag Array Utility Visual Processing Unit Device ECM Suite Storage Large Storage Unit Processor Visual Processing Unit Hackware Authchip [Propulsion] Weapon Gatling Laser Energy Gun Gatling Laser Energy Cannon Latent Energy Streamer Ballistic Gun Assault Rifle Ballistic Cannon Gauss Cannon Special Melee Weapon Datajack Build | -11 -10 -10 -10 -9 -8 -7 -7 -6 ------- Run | Yrd Mat Min Exi Min Mat Fac DSF Fac Slots Evolved 8 | . . . . . 4 2 . 2 Power 1 | . . . . . 1 . . . Propulsion . | . . . . . . . . . Utility 6 | . . . . . 2 2 . 2 Weapon 1 | . . . . . 1 . . . Parts Attached 59 | 6 3 2 5 1 19 5 1 17 Power 14 | 1 . 1 . 1 7 . . 4 Engine 11 | 1 . 1 . 1 5 . . 3 Core 3 | . . . . . 2 . . 1 Reactor . | . . . . . . . . . Propulsion 7 | 2 1 . 2 . 1 . . 1 Treads . | . . . . . . . . . Leg 6 | 2 1 . 2 . 1 . . . Wheel . | . . . . . . . . . Hover 1 | . . . . . . . . 1 Flight . | . . . . . . . . . Utility 23 | 1 1 1 2 . 6 3 . 9 Device 10 | . . 1 . . 5 1 . 3 Storage 3 | 1 . . 2 . . . . . Processor 4 | . 1 . . . 1 1 . 1 Hackware 6 | . . . . . . 1 . 5 Protection . | . . . . . . . . . Artifact . | . . . . . . . . . Weapon 15 | 2 1 . 1 . 5 2 1 3 Energy Gun 7 | . 1 . . . 4 1 . 1 Energy Cannon 3 | . . . 1 . 1 1 . . Ballistic Gun 2 | 2 . . . . . . . . Ballistic Cannon 2 | . . . . . . . . 2 Launcher . | . . . . . . . . . Special Weapon . | . . . . . . . . . Impact Weapon . | . . . . . . . . . Slashing Weapon . | . . . . . . . . . Piercing Weapon . | . . . . . . . . . Special Melee Weapon 1 | . . . . . . . 1 . Unidentified Prototypes . | . . . . . . . . . Corrupted Parts 1 | . . . . . 1 . . . System Corruption 10 | . . . . . 10 . . . Parts Lost 33 | . 2 . . . 13 . 3 15 Power 10 | . . . . . 6 . . 4 Propulsion 2 | . 1 . . . . . . 1 Utility 12 | . . . . . 4 . 1 7 Weapon 9 | . 1 . . . 3 . 2 3 Highest Loss Streak 6 | . 2 . . . 6 . 3 6 To Critical Strikes . | . . . . . . . . . Average Slot Usage (%) 86 | . 85 100 100 100 91 69 67 65 Engine 9 | . 14 14 14 14 8 . . 5 Core 1 | . . . . . 5 . . . Leg 18 | . 24 28 28 28 17 15 15 6 Device 9 | . . 11 . . 17 7 7 9 Storage 8 | . 14 2 14 14 9 7 7 3 Processor 9 | . 7 14 14 14 8 15 12 7 Hackware 5 | . . . . . . 7 7 21 Energy Gun 9 | . . 14 14 14 15 7 5 2 Energy Cannon 4 | . . . 7 14 7 7 3 . Ballistic Gun 5 | . 23 14 7 . . . . . Naked Turns . | . . . . . . . . . Heaviest Build 55 | 12 12 14 37 39 55 36 37 46 Greatest Support 60 | 20 20 20 60 60 60 60 60 60 Greatest Overweight (x) 6 | . . . 1 . 1 . . 6 Average Overweight (x) . | . . . . . . . . . Largest Inventory Capacity 15 | 8 8 8 15 15 15 15 15 15 Average Capacity 11 | 7 8 5 8 15 15 15 15 11 Most Carried 15 | 5 4 4 8 8 15 9 6 5 Average Carried 6 | 2 2 3 6 7 11 5 4 3 Final Capacity 15 | 8 8 5 15 15 15 15 15 5 Final Carried 10 | 2 2 4 7 8 10 5 6 3 Class Distribution -------------------- 54% | Mutant 21% | Skirmisher 15% | Hacker-Mutant 7% | Infiltrator-Skirmisher Dominant Class ---------------- Mutant | -10/Materials Mutant | -10/Mines Mutant | -10/Exiles Mutant | -9/Mines Skirmisher | -8/Materials Skirmisher | -7/Factory Mutant | -7/DSF Hacker-Mutant | -6/Factory Resources | -11 -10 -10 -10 -9 -8 -7 -7 -6 ----------- Run | Yrd Mat Min Exi Min Mat Fac DSF Fac Matter Collected 856 | 189 65 147 . 134 206 . . 115 Remotely . | . . . . . . . . . Salvage Created 938 | . 120 . . 84 648 . . 86 Parts 71 | . 7 . . 5 57 . . 2 Haulers Intercepted 1 | . . . . . . . . 1 Recyclers Shooed 1 | . 1 . . . . . . . Parts Field Recycled . | . . . . . . . . . Retrieved Matter . | . . . . . . . . . Parts Self-Destructed . | . . . . . . . . . Prevented . | . . . . . . . . . Kills | -11 -10 -10 -10 -9 -8 -7 -7 -6 ------- Run | Yrd Mat Min Exi Min Mat Fac DSF Fac Combat Hostiles Destroyed 19 | . 2 . . 5 11 . . 1 Melee 1 | . . . . . 1 . . . Guns 11 | . 2 . . 1 8 . . . Cannons 1 | . . . . . . . . 1 AOE 4 | . . . . 4 . . . . Classes Destroyed 11 | . 3 . . 2 4 . . 2 Worker 3 | . . . . . 3 . . . Builder 4 | . . . . . 4 . . . Hauler 1 | . . . . . . . . 1 Operator 3 | . 1 . . . 2 . . . Watcher 4 | . 1 . . . 3 . . . Swarmer 9 | . . . . 4 5 . . . Grunt 5 | . 2 . . . 3 . . . Sentry 2 | . . . . . 2 . . . Hunter 1 | . . . . . 1 . . . Programmer 1 | . . . . . . . . 1 Assembled 1 | . . . . 1 . . . . Best Kill Streak 7 | . 2 . . 4 7 . . 1 Combat Bots Only 5 | . 2 . . 4 5 . . 1 Max Kills in Single Turn 4 | . 1 . . 4 4 . . 1 Gunslinging . | . . . . . . . . . Exploded 4 | . . . . 4 . . . . Melee 1 | . . . . . 1 . . . Uniques/NPCs Destroyed . | . . . . . . . . . Combat | -11 -10 -10 -10 -9 -8 -7 -7 -6 -------- Run | Yrd Mat Min Exi Min Mat Fac DSF Fac Hostile Shots Fired 509 | . 45 . . 6 158 . 12 288 Missed 189 | . 10 . . 4 54 . 4 117 Damage Taken 4584 | . 442 . . 43 1432 . 418 2249 Core 1532 | . 112 . . 33 329 . 206 852 Absorbed by Shields 117 | . . . . . 117 . . . Core Remaining (%) 63 | 100 . . . 42 40 . 70 . Volleys Fired 75 | . 26 . . 5 26 . . 18 Largest 3 | . 2 . . 2 3 . . 1 Hottest 240 | . 40 . . 110 240 . . 50 Shots Fired 129 | . 52 1 . 8 50 . . 18 Gun 111 | . 52 1 . 6 44 . . 8 Cannon 18 | . . . . 2 6 . . 10 Launcher . | . . . . . . . . . Special . | . . . . . . . . . Kinetic 63 | . 52 1 . . . . . 10 Thermal 58 | . . . . 6 44 . . 8 Explosive . | . . . . . . . . . Electromagnetic 8 | . . . . 2 6 . . . Robot Hit Streak 11 | . 11 . . 1 7 . . 11 Robot Miss Streak 3 | . 3 . . 2 3 . . 3 Penetration Max . | . . . . . . . . . Secondary Targets 3 | . 2 . . . 1 . . . Max Gunslinging Chain 1 | . 1 . . . 1 . . . Shots Hit Robots 82 | . 33 . . 2 28 . 2 17 Core Hits 60 | . 8 . . 7 40 . . 5 Critical Kills . | . . . . . . . . . Critical Parts Destroyed . | . . . . . . . . . Critical Strikes 3 | . . . . . . . . 3 Burn 1 | . . . . . . . . 1 Blast 2 | . . . . . . . . 2 Melee Attacks 5 | . . . . . . . 2 3 Impact . | . . . . . . . . . Slashing . | . . . . . . . . . Piercing . | . . . . . . . . . Sneak Attacks 5 | . . . . . . . 2 3 Combat Hostiles 2 | . . . . . . . 2 . Follow-up Attacks . | . . . . . . . . . Damage Inflicted 2879 | . 426 . . 228 1870 . . 355 Guns 1132 | . 426 . . 12 609 . . 85 Cannons 258 | . . . . 5 18 . . 235 Explosions 1240 | . . . . 211 1029 . . . Melee . | . . . . . . . . . Ramming 249 | . . . . . 214 . . 35 Kinetic 661 | . 426 . . . . . . 235 Thermal 706 | . . . . 12 609 . . 85 Explosive . | . . . . . . . . . Electromagnetic 1263 | . . . . 216 1047 . . . Impact . | . . . . . . . . . Slashing . | . . . . . . . . . Piercing . | . . . . . . . . . Highest Corruption 25 | . 2 2 2 5 25 . . 1 Average Corruption 6 | . 2 2 2 4 13 . . 1 Corruption Purged . | . . . . . . . . . Corruption Blocked . | . . . . . . . . . Effects 42 | . 4 4 3 2 27 . . 2 Message Errors 8 | . . 3 1 . 4 . . . Matter Fused 5 | . 2 . 1 . 2 . . . Heat Flow Errors 2 | . . . . . 2 . . . Energy Discharges 6 | . . . . 1 4 . . 1 Parts Rejected 3 | . . . . . 3 . . . Parts Fused 1 | . . . . . 1 . . . Data Loss (minor) 8 | . 2 . 1 . 4 . . 1 Misfires 4 | . . 1 . 1 2 . . . Misdirections 2 | . . . . . 2 . . . Weapon Failures 3 | . . . . . 3 . . . Overload Shots . | . . . . . . . . . Overflow Damage 57 | . . . . . 42 . . 15 Projectiles 15 | . . . . . . . . 15 Explosions 42 | . . . . . 42 . . . Melee . | . . . . . . . . . Knockbacks 4 | . . . . . . . . 4 Impact . | . . . . . . . . . Kinetic 4 | . . . . . . . . 4 Secondary . | . . . . . . . . . Self-Inflicted Damage . | . . . . . . . . . Shots . | . . . . . . . . . Rammed . | . . . . . . . . . Targets Rammed 30 | . . . . . 20 . . 10 Kicked 30 | . . . . . 20 . . 10 Crushed . | . . . . . . . . . Highest Temperature 598 | . 5 . . 78 598 . . . Average Temperature 134 | . 5 . . 39 159 . . . Received Heat Transfer 771 | . 210 . . . 483 . . 78 Effects 14 | . . . . . 14 . . . Shutdowns 4 | . . . . . 4 . . . Interference 3 | . . . . . 3 . . . Matter Decay 1 | . . . . . 1 . . . Short Circuit 1 | . . . . . 1 . . . Damage (minor) 3 | . . . . . 3 . . . Damage (major) 2 | . . . . . 2 . . . Siege Activations . | . . . . . . . . . Robots Corrupted 2 | . . . . . 2 . . . Combat Hostiles 2 | . . . . . 2 . . . Parts Fried 7 | . . . . . 7 . . . Impact Corruptions . | . . . . . . . . . Robots Melted 1 | . . . . . . . . 1 Combat Hostiles . | . . . . . . . . . Parts Melted 1 | . . . . . . . . 1 Heat Transferred 1757 | . . . . 37 1387 . . 333 Parts Sabotaged . | . . . . . . . . . Parts Stolen . | . . . . . . . . . Parts Stripped . | . . . . . . . . . Power Chain Reactions 1 | . . . . . 1 . . . Latent Energy Used 959 | . . . . 153 806 . . . LE Corruption 18 | . . . . 3 15 . . . Alert | -11 -10 -10 -10 -9 -8 -7 -7 -6 ------- Run | Yrd Mat Min Exi Min Mat Fac DSF Fac Peak Influence 819 | . 98 30 . 94 819 363 254 184 Initial 363 | . . 30 . . 36 363 254 117 Average 157 | . 53 30 . 93 277 363 243 115 Maximum Alert Level 3 | . . . . . 3 1 1 . Low Security (%) 80 | 100 100 100 . 100 56 . . 100 Level 1 9 | . . . . . 17 100 100 . Level 2 5 | . . . . . 15 . . . Level 3 3 | . . . . . 10 . . . Level 4 . | . . . . . . . . . Level 5 . | . . . . . . . . . High Security . | . . . . . . . . . Max Security . | . . . . . . . . . Squads Dispatched 9 | . 1 . . . 6 . . 2 Investigation 2 | . . . . . 2 . . . Extermination 1 | . . . . . . . . 1 Reinforcement 5 | . 1 . . . 3 . . 1 Assault . | . . . . . . . . . Garrison 1 | . . . . . 1 . . . Intercept . | . . . . . . . . . Searches Triggered . | . . . . . . . . . Construction Impeded . | . . . . . . . . . Haulers Reinforced . | . . . . . . . . . Active Scanning Responses . | . . . . . . . . . Cargo Convoy Interrupts . | . . . . . . . . . Stealth | -11 -10 -10 -10 -9 -8 -7 -7 -6 --------- Run | Yrd Mat Min Exi Min Mat Fac DSF Fac Distress Signals 4 | . 1 . . . 3 . . . Communications Jammed . | . . . . . . . . . Distress Signals . | . . . . . . . . . Times Spotted 88 | . 10 . . 5 51 . 1 21 Peak Tracking Total 10 | . 3 . . 4 10 . 1 6 Tactical Retreats 17 | . . . . . 10 . . 7 Traps | -11 -10 -10 -10 -9 -8 -7 -7 -6 ------- Run | Yrd Mat Min Exi Min Mat Fac DSF Fac Traps Triggered 4 | . 2 . . . 1 . . 1 Indirectly . | . . . . . . . . . Trap Hack Attempts . | . . . . . . . . . Triggered . | . . . . . . . . . Disarmed . | . . . . . . . . . Reprogrammed . | . . . . . . . . . Reused . | . . . . . . . . . Traps Extracted . | . . . . . . . . . Installed . | . . . . . . . . . Triggered . | . . . . . . . . . Machines | -11 -10 -10 -10 -9 -8 -7 -7 -6 ---------- Run | Yrd Mat Min Exi Min Mat Fac DSF Fac Machines Disabled 5 | . . . . . 5 . . . Max in Single Turn 2 | . . . . . 2 . . . Machines Repaired . | . . . . . . . . . Machines Dismantled . | . . . . . . . . . Machines Sabotaged . | . . . . . . . . . Overloaded Fab Kills . | . . . . . . . . . Hacking | -11 -10 -10 -10 -9 -8 -7 -7 -6 --------- Run | Yrd Mat Min Exi Min Mat Fac DSF Fac Machines Accessed 12 | . 2 . 1 . 4 1 . 4 Terminals 9 | . 2 . . . 3 1 . 3 Fabricators 1 | . . . . . . . . 1 Repair Stations . | . . . . . . . . . Recycling Units . | . . . . . . . . . Scanalyzers 1 | . . . . . 1 . . . Garrison Access . | . . . . . . . . . Total Hacks 32 | . 4 . 1 . 13 1 . 13 Successful 14 | . 2 . 1 . 3 1 . 7 Failed 18 | . 2 . . . 10 . . 6 Catastrophic 4 | . 1 . . . 2 . . 1 Database Lockouts . | . . . . . . . . . Manual 21 | . 4 . 1 . 9 . . 7 Terminals 26 | . 4 . . . 10 1 . 11 Fabricators 2 | . . . . . . . . 2 Repair Stations . | . . . . . . . . . Recycling Units . | . . . . . . . . . Scanalyzers 3 | . . . . . 3 . . . Garrison Access . | . . . . . . . . . Terminal Hacks 10 | . . . 1 . 1 1 . 7 Record 3 | . . . . . . . . 3 Open DSF 3 | . . . . . . 1 . 2 Level Access Points 1 | . . . . . . . . 1 Branch Access Points 2 | . . . . . 1 . . 1 Derelict Proto ID Bank 1 | . . . 1 . . . . . Fabricator Hacks . | . . . . . . . . . Repair Station Hacks . | . . . . . . . . . Recycling Unit Hacks . | . . . . . . . . . Scanalyzer 2 | . . . . . 2 . . . Insert Component 1 | . . . . . 1 . . . Analyze 1 | . . . . . 1 . . . Garrison Access Hacks . | . . . . . . . . . Unauthorized Hacks 2 | . 2 . . . . . . . Terminals 2 | . 2 . . . . . . . Assimilate 1 | . 1 . . . . . . . Botnet 1 | . 1 . . . . . . . Fabricators . | . . . . . . . . . Repair Stations . | . . . . . . . . . Recycling Units . | . . . . . . . . . Scanalyzers . | . . . . . . . . . Garrison Access . | . . . . . . . . . Data Cores Recovered . | . . . . . . . . . Used . | . . . . . . . . . Hacking Detections 8 | . 2 . . . 4 . . 2 Full Trace Events 3 | . . . . . 3 . . . Feedback Events . | . . . . . . . . . Feedback Blocked . | . . . . . . . . . Robot Schematics Acquired . | . . . . . . . . . Robots Built . | . . . . . . . . . Authchips . | . . . . . . . . . Time . | . . . . . . . . . Total Robot Build Rating . | . . . . . . . . . Part Schematics Acquired 1 | . . . . . 1 . . . Parts Built . | . . . . . . . . . Authchips . | . . . . . . . . . Time . | . . . . . . . . . Total Part Build Rating . | . . . . . . . . . Parts Repaired . | . . . . . . . . . Time . | . . . . . . . . . Parts Recycled . | . . . . . . . . . Recycled Matter . | . . . . . . . . . Retrieved Matter . | . . . . . . . . . Retrieved Components . | . . . . . . . . . Parts Scanalyzed 1 | . . . . . 1 . . . Part Schematics Acquired 1 | . . . . . 1 . . . Parts Damaged . | . . . . . . . . . Bothacking | -11 -10 -10 -10 -9 -8 -7 -7 -6 ------------ Run | Yrd Mat Min Exi Min Mat Fac DSF Fac Used RIF Installer . | . . . . . . . . . Robots Hacked 1 | . . . . . . . . 1 Non-combat 1 | . . . . . . . . 1 Combat . | . . . . . . . . . Robot Hacks Applied 3 | . . . . . . . . 3 no_distress 1 | . . . . . . . . 1 find_fabricator 1 | . . . . . . . . 1 find_dsf 1 | . . . . . . . . 1 Relay Couplers Released . | . . . . . . . . . Fabnet Peak Effective % . | . . . . . . . . . Robots Rewired . | . . . . . . . . . Allies Hacked . | . . . . . . . . . Hacks Repelled . | . . . . . . . . . Allies | -11 -10 -10 -10 -9 -8 -7 -7 -6 -------- Run | Yrd Mat Min Exi Min Mat Fac DSF Fac Total Allies . | . . . . . . . . . Largest Group . | . . . . . . . . . Highest-Rated Group . | . . . . . . . . . Highest-Rated Ally . | . . . . . . . . . Total Orders . | . . . . . . . . . Ally Attacks 22 | . . . . . 22 . . . Total Damage 1071 | . . . . . 1071 . . . Kills 10 | . . . . . 10 . . . Allies Corrupted . | . . . . . . . . . Allies Melted . | . . . . . . . . . Turrets Deployed 3 | . . . . . 3 . . . Intel | -11 -10 -10 -10 -9 -8 -7 -7 -6 ------- Run | Yrd Mat Min Exi Min Mat Fac DSF Fac Robot Analysis Total . | . . . . . . . . . Derelict Logs Recovered 2 | . . . . 2 . . . . Drone Launches . | . . . . . . . . . Drone Recoveries . | . . . . . . . . . Exploration | -11 -10 -10 -10 -9 -8 -7 -7 -6 ------------- Run | Yrd Mat Min Exi Min Mat Fac DSF Fac Turns Passed 2456 | 52 302 258 278 112 797 18 58 581 Spaces Moved 2195 | 36 182 207 242 105 781 12 54 576 Core 44 | 6 . . . . . . . 38 Treads . | . . . . . . . . . Legs 1932 | 30 182 207 242 105 781 12 54 319 Wheels . | . . . . . . . . . Hover 219 | . . . . . . . . 219 Flight . | . . . . . . . . . Fastest Speed 45 | 50 120 120 90 90 45 45 90 45 Average Speed 92 | 108 120 120 106 90 79 82 90 84 Slowest Speed 350 | 120 120 120 190 90 170 90 90 350 Overloaded Moves 227 | . . . . . 184 2 . 41 Propulsion Burnouts . | . . . . . . . . . Robots Hopped 3 | . . . . . 3 . . . Cave-ins Triggered . | . . . . . . . . . Exploration Rate (%) 38 | 4 32 49 63 16 73 1 82 24 Regions Visited 8 Branch Regions 3 Pre-discovered Areas 1 | . . . . 1 . . . . Known Exits Taken 1 | . . . . . . 1 . . Unknown Exits Taken 6 | 1 1 1 1 1 1 . . . Scrap Searched 2 | . . 1 . 1 . . . . Spaces Dug . | . . . . . . . . . Terrain Destroyed 86 | . . . . 4 79 . . 3 Melee . | . . . . . . . . . Projectile 3 | . . . . . . . . 3 AOE 83 | . . . . 4 79 . . . Terrain Rammed . | . . . . . . . . . Walls Destroyed . | . . . . . . . . . Machines Disabled . | . . . . . . . . . Actions | -11 -10 -10 -10 -9 -8 -7 -7 -6 --------- Run | Yrd Mat Min Exi Min Mat Fac DSF Fac Total 2480 | 49 213 215 263 115 890 19 62 654 Wait 42 | . . 1 . . 25 3 . 13 Move 2181 | 35 181 206 241 104 774 11 53 576 Hop 3 | . . . . . 3 . . . Pick Up 61 | 8 3 2 10 3 19 . 2 14 Fast Attach . | . . . . . . . . . Attach 46 | 6 3 . . . 14 5 1 17 Detach 1 | . . . . . . . . 1 Swap 13 | . . 2 5 1 5 . . . Drop 15 | . . . 7 2 4 . . 2 Fire 75 | . 26 . . 5 26 . . 18 Melee 5 | . . . . . . . 2 3 Ram . | . . . . . . . . . Kick 30 | . . . . . 20 . . 10 Crush . | . . . . . . . . . Escape Stasis . | . . . . . . . . . Rewire 8 | . . 4 . . . . 4 . Trap . | . . . . . . . . . Miscellaneous . | . . . . . . . . . Route ------- -11/Scrapyard -10/Materials -10/Mines -10/Exiles (discovered 2 exits: [*Min x2]) -9/Mines -8/Materials (discovered 2 exits: *Fac x2) -7/Factory -7/DSF -6/Factory (discovered 6 exits: Fac x4 / Low x2) History --------- Turn | Location | Event 5 | -11/Scrapyard | Discovered new exit (range 16) 53 | -11/Scrapyard | Entered Materials 191 | -10/Materials | Discovered new exit (range 14) 306 | -10/Materials | Build established: Mutant 355 | -10/Materials | Entered Mines 424 | -10/Mines | Found a hidden stash of uninstalled traps 607 | -10/Mines | Deemed a non-threat by the Exiles lab entrance 607 | -10/Mines | Discovered new exit (range 6) 613 | -10/Mines | Entered Exiles 635 | -10/Exiles | Discovered new exit (range 17) 648 | -10/Exiles | Met 8R-AWN 667 | -10/Exiles | Met EX-HEX 703 | -10/Exiles | Met EX-BIN 716 | -10/Exiles | Aligned with FarCom system 718 | -10/Exiles | Given EX-Vault access code 745 | -10/Exiles | Opened EX-Vault 756 | -10/Exiles | Found Latent Energy Streamer 768 | -10/Exiles | Found Potential Leg 771 | -10/Exiles | Found Potential Leg 777 | -10/Exiles | Found Deploy-a-Sentry 779 | -10/Exiles | Found Deploy-a-Sentry 781 | -10/Exiles | Found Deploy-a-Sentry 801 | -10/Exiles | Warned to stay clear of 0b10 Research branches 825 | -10/Exiles | Met EX-DEC 883 | -10/Exiles | Discovered new exit (range 10) 891 | -10/Exiles | Stole three prototypes: Potential Leg, Latent Energy Streamer, Deploy-a-Sentry 891 | -10/Exiles | Entered Mines 892 | -9/Mines | Assembled infested the area 897 | -9/Mines | Assisted by a Guerilla fighting off Assembled 918 | -9/Mines | Learned Materials emergency access door positions 941 | -9/Mines | Core integrity fell below 50% 970 | -9/Mines | Learned location of Zion (-6) 1000 | -9/Mines | Discovered new exit (range 3) 1003 | -9/Mines | Entered Materials 1003 | -8/Materials | Evolved 4 slots: Power x1, Utility x2, Weapon x1 1294 | -8/Materials | Garrison activated, responded to threat 1345 | -8/Materials | Discovered new exit (range 17) 1469 | -8/Materials | System corruption reached 10% 1482 | -8/Materials | Build established: Skirmisher 1566 | -8/Materials | Lost 3 parts (2p1u) 1594 | -8/Materials | DAS Turret deployed 1596 | -8/Materials | DAS Turret deployed 1694 | -8/Materials | DAS Turret deployed 1793 | -8/Materials | Discovered new exit (range 17) 1794 | -8/Materials | Core integrity fell below 50% 1800 | -8/Materials | Entered Factory 1800 | -7/Factory | Evolved 2 slots: Utility x2 1802 | -7/Factory | FarCom data flow suspended 1817 | -7/Factory | Identified exit to DSF 1818 | -7/Factory | Entered DSF 1830 | -7/DSF | Lost 6 parts (1p3u2w) 1859 | -7/DSF | Additional patrols routed to DSF 1865 | -7/DSF | Discovered new exit (range 14) 1876 | -7/DSF | Entered Factory 1876 | -6/Factory | Evolved 2 slots: Utility x2 1892 | -6/Factory | Lost 3 parts (1u2w) 2000 | -6/Factory | Build established: Mutant 2133 | -6/Factory | Lost 3 parts (1p2w) 2208 | -6/Factory | Core integrity fell below 50% 2251 | -6/Factory | Lost 6 parts (2p1n3u) 2364 | -6/Factory | Core integrity fell below 20% 2385 | -6/Factory | Build established: Hacker-Mutant 2442 | -6/Factory | Identified exit to Lower Caves 2442 | -6/Factory | Identified exit to Factory 2457 | -6/Factory | Destroyed by H-66 Slayer with Gauss Rifle Last Messages --------------- Found 2 branch access points: (181,75) Lower Caves (133,120) Lower Caves Map updated. Connecting with Terminal... >>Access(Main) Found 4 level access points to Factory: (191,158) (9,120) (194,33) (159,75) Map updated. Penetrated by Slug. Imp. Cryofiber Web destroyed. Penetrated by Slug. Adv. Sensor Array destroyed. Gauss Cannon destroyed. Penetrated by Slug. Slug penetrates Wall. [Achievement: Just Browsing] Map ----- +----------------------------------------------------+ | ????????????????????# #?????????????????????? | | ????????????????????# #?????????????????????? | | ????????????????????# #?????????????????????? | | ????????????????????# #?????????????????????? | | ????????????????????######+#?????????????????????? | | ???????????????????#""""?# #?????????????????????? | | ????????????? ##""F"## ###?#########?????????? | | ???????????? # #?????????? | | ???????????? # !!! #?????????? | | ?????????????? """ """ """ + !! #?????????? | | ???????????????""" """ """ # !! #?????????? | | ???????????""" """ """ """ ###########?????????? | | ?????????? ###?#????????????????? | | ??????????] # ????????????????? | | ?????????? # """"?"?????????????? | | ?????????? Y # """" """???????????? | | ?????????? ###### # """" """"??????????? | | ??????????? ??????# # """" """" ?#???????? | | ????????????###?######### # """" """" #???????? | | ???????????# + h + """" """" #???????? | | ???????????# # h# #???????? | | ???????????# # # #???????? | | ???????????# ?# # #???????? | | ???????????# ?# # #???????? | | ???????????# ??# # #???????? | | ???????????# ??#@ ##############???????? | | ???????????# ???# # ! #???????? | | ???????????? ???# # """ ????????? | | ???????????? ????# # "T" """ [?????????? | | ????????????? ????# + """ ?????????? | | ????????????? ?????# # ! """ ?????????? | | ???????????############## # ????????? | | ???????????# # # """ """ #???????? | | ???????????# # # """ """ #???????? | | ???????????# """" """" + # """ """???????????? | | ???????????# """" """" # # ??????????? | | ??????????????"""" """" # # ???????????? | | ??????????????"""" """" # # ] ? ???????????? | | ??????????????? # #######???#??????????? | | ???????????????""" """" # +????????????????????? | | ?????????????????" """" # #????????????????????? | | ???????????????????"""" # #????????????????????? | | ??????????????????????" # #????????????????????? | | ?????????????????????? # #????????????????????? | | ??????????????????????### #????????????????????? | | ????????????????????????# #????????????????????? | | ????????????????????????# #????????????????????? | | ????????????????????????? ????????????????????? | | ????????????????????????? ????????????????????? | | ????????????????????????? ?????????????????????? | +----------------------------------------------------+ Best States ------------- Heat Dissipation 45 Energy Generation 29 Energy Capacity 480 Matter Stores 300 Matter Capacity 300 Sight Range 20 Robot Scan Range 16 Terrain Scan Density 10 ECM Strength 1 Base Temperature (-) 150 Evasion (%) 66 Targeting Accuracy 8 Offensive Hacking 20 Defensive Hacking 22 Authchip Count 2 Item Schematics ----------------- Rnf. Deuterium Engine | -8/Materials | Scanalyzed Robot Schematics ------------------ None Fabricated ------------ Nothing Alien Tech Used ----------------- None Achievements -------------- Just Browsing Challenges ------------ None Game ------ Seed FireDimensionalInverter Manual? 0 Play Time 00:33:04 Cumulative 15.0 hours Start 2024.04.26 @ 19:12:22 End 2024.04.26 @ 19:45:49 Sessions 1 Manual Loads 0 Difficulty Rogue Special Mode None Game No. 41 Rogue 41 Adventurer 0 Explorer 0 Win Type - Total 0 Types 0/0/0/0/0/0/0/0/0 Lore% 20 Gallery% 25 Achievement% 21 Wizard Run 0 Options --------- Layout 2 ASCII 0 Keyboard 0 Movement Numpad Keybinds 0 Fullscreen 1 Font 24/Smallcaps Map View 50x44 Zoom Use 0% Tactical HUD 0 Map Filters NONE Filters NONE Steam 1 RUN: 46257c6e-9394-4157-b035-3c3c65a70e56